bitfinex/quotes_ETHUSD_20260225
["timestamp","ask_amount","ask_price","bid_price","bid_amount"]
[1771979133259,0.51873337,1852.9,1852.7,1.34938198]
[1771979134264,0.001,1852.8,1852.7,1.34938198]
[1771979135064,0.001,1852.8,1852.7,1.86952051]
[1771979135744,0.001,1852.8,1852.7,0.52013853]
[1771979135939,0.001,1852.8,1852.6,1.86953943]
[1771979139847,0.001,1852.8,1852.7,0.52013853]
[1771979141469,0.001,1852.8,1852.6,1.86953552]
[1771979143376,0.001,1852.8,1852.7,0.52013853]
[1771979143542,0.51973337,1852.8,1852.6,1.34939699]
[1771979144654,0.51973337,1852.8,1852.4,0.0011]
[1771979144858,0.51973337,1852.8,1852.4,1.35069821]
[1771979145472,0.51973337,1852.8,1852.4,0.52123853]
[1771979145672,0.001,1852.8,1852.6,0.52013853]
[1771979146394,0.001,1852.8,1852.7,0.0011]
[1771979147697,0.001,1852.8,1852.7,1.35048198]
[1771979149787,0.001,1852.8,1852.7,0.0011]
[1771979150184,0.51973337,1852.8,1852.5,1.35057003]
[1771979151803,0.51973337,1852.8,1852.5,0.0011]
[1771979152203,0.51873337,1852.7,1852.5,0.0011]
[1771979154296,0.51873337,1852.6,1852.5,0.0011]
[1771979156623,1.86818819,1852.6,1852.5,0.0011]
[1771979157721,0.51873337,1852.6,1852.5,0.0011]
[1771979159335,1.86818819,1852.6,1852.5,0.0011]
[1771979161230,0.53458853,1852.5,1852.3,0.0011]
[1771979167302,0.53458853,1852.4,1852.3,0.0011]
[1771979168745,0.53458853,1852.3,1852.0,0.0011]
[1771979168932,0.53458853,1852.1,1852.0,0.0011]
[1771979171438,0.53458853,1852.0,1851.8,0.0011]
[1771979171641,0.53458853,1851.9,1851.8,0.0011]
[1771979182632,0.53458853,1851.8,1851.6,0.0011]
[1771979184460,0.53458853,1851.8,1851.7,0.0011]
[1771979185433,1.88462633,1851.8,1851.7,0.0011]
[1771979185640,0.50611507,1851.7,1851.5,0.0011]
[1771979187384,0.50611507,1851.5,1851.4,0.0011]
[1771979187551,0.50611507,1851.4,1851.2,0.0011]
[1771979196959,0.50611507,1851.4,1851.3,0.0011]
[1771979200787,1.85644455,1851.4,1851.3,0.0011]
[1771979200992,0.50611507,1851.3,1851.0,0.0011]
[1771979201299,0.50611507,1851.1,1850.9,0.0011]
[1771979202091,1.85666347,1851.1,1850.9,0.0011]
[1771979202297,0.50611507,1851.1,1850.9,0.0011]
[1771979202805,2.44037344,1851.1,1850.9,0.0011]
[1771979203101,0.50611507,1851.1,1850.9,0.0011]
[1771979203983,0.58370702,1851.1,1850.9,0.0011]
[1771979204194,0.50611507,1851.0,1850.9,0.0011]
[1771979206491,0.50611507,1850.9,1850.5,0.49230265]
[1771979208310,0.50611507,1850.9,1850.5,1.84326971]
[1771979208807,0.50611507,1850.8,1850.5,0.49230265]
[1771979209508,0.50611507,1850.7,1850.2,0.49098269]
[1771979209695,0.50611507,1850.6,1850.2,0.49098269]
[1771979210407,0.50611507,1850.6,1850.2,1.84216446]
[1771979211414,1.35069528,1850.9,1850.5,0.49012779]
[1771979211592,0.50611507,1850.9,1850.5,0.49012779]
[1771979212502,0.50611507,1850.8,1850.5,0.49012779]
[1771979213512,0.50611507,1850.6,1850.2,0.48929241]
[1771979213719,0.50611507,1850.5,1850.2,0.48929241]
[1771979213885,0.50611507,1850.5,1850.1,1.35126716]
[1771979214292,0.50611507,1850.5,1850.1,1.84014907]
[1771979215909,0.47445135,1850.6,1850.2,0.47443592]
[1771979216119,1.82521858,1850.8,1850.3,0.47443592]
[1771979216317,1.82521858,1850.8,1850.1,1.35126716]
[1771979216318,1.82517251,1850.9,1850.5,0.47443592]
[1771979217214,0.47445135,1850.8,1850.5,0.47443592]
[1771979222001,1.82622832,1850.8,1850.5,0.47443592]
[1771979222198,0.47545135,1850.8,1850.5,0.47443592]
[1771979222398,0.001,1850.8,1850.6,0.47443592]
[1771979223414,0.47445135,1850.6,1850.3,0.0011]
[1771979223614,0.47445135,1850.5,1850.3,0.0011]
[1771979225324,1.82544579,1850.5,1850.3,0.0011]
[1771979225495,0.47445135,1850.5,1850.3,0.0011]
[1771979226026,1.82544382,1850.5,1850.3,0.0011]
[1771979226210,0.47445135,1850.5,1850.3,0.0011]
[1771979231024,0.47545135,1850.8,1850.3,0.47553592]
[1771979231197,0.001,1850.8,1850.3,0.47553592]
[1771979232229,0.47545135,1850.8,1850.3,0.47553592]
[1771979234028,0.47445135,1850.5,1850.0,1.35244433]
[1771979234325,0.47445135,1850.5,1850.0,0.47553592]
[1771979235409,0.47445135,1850.5,1850.0,0.0011]
[1771979235615,0.47445135,1850.5,1850.4,0.0011]
[1771979235816,0.47445135,1850.5,1850.0,0.0011]
[1771979236008,1.82551058,1850.4,1850.3,0.0011]
[1771979236209,0.47445135,1850.3,1850.0,0.0011]
[1771979236609,0.47445135,1850.3,1850.1,0.0011]
[1771979239609,0.47445135,1850.2,1850.1,0.0011]
[1771979241514,1.82565662,1850.2,1850.1,0.0011]
[1771979243025,0.47445135,1850.1,1849.7,0.0011]
[1771979243519,0.47445135,1849.9,1849.5,0.0011]
[1771979243728,0.47445135,1849.8,1849.5,0.47553592]
[1771979245343,1.8477668,1850.4,1849.8,0.46395109]
[1771979245642,0.49670737,1850.3,1849.9,0.46395109]
[1771979248925,0.49670737,1850.2,1850.0,0.0011]
[1771979249124,0.49770737,1850.2,1850.0,0.0011]
[1771979251518,0.001,1850.2,1850.0,0.46505109]
[1771979252116,0.49770737,1850.2,1850.0,0.0011]
[1771979252518,0.49670737,1850.1,1849.9,0.0011]
[1771979252714,0.49670737,1850.1,1849.7,0.0011]
[1771979253546,0.49670737,1849.9,1849.7,0.0011]
[1771979253927,1.84803464,1850.1,1849.7,0.46505109]
[1771979254137,0.001,1850.2,1849.8,0.46395109]
[1771979254549,0.001,1850.2,1850.0,0.46395109]
[1771979256051,0.001,1850.2,1850.1,0.46395109]
[1771979264064,0.001,1850.2,1850.0,0.0011]
[1771979264370,0.49770737,1850.2,1850.0,0.0011]
[1771979266254,1.3512783,1850.1,1850.0,0.0011]
[1771979266454,1.84798567,1850.1,1850.0,0.0011]
[1771979266958,1.84798567,1850.1,1849.7,0.0011]
[1771979266959,0.49670737,1850.0,1849.7,0.0011]
[1771979268867,0.49770737,1850.2,1849.8,0.46395109]
[1771979269162,0.001,1850.2,1849.8,0.46395109]
[1771979269358,0.49670737,1850.1,1849.7,0.0011]
[1771979270836,1.35135135,1850.0,1849.7,0.0011]
[1771979271036,0.49670737,1849.9,1849.7,0.0011]
[1771979272050,0.49670737,1850.1,1849.7,0.46505109]
[1771979272250,1.84798744,1850.1,1849.7,0.46505109]
[1771979272755,0.49670737,1850.0,1849.7,0.46505109]
[1771979273384,0.49670737,1850.0,1849.8,0.0011]
[1771979274071,1.84809506,1850.0,1849.8,0.0011]
[1771979274271,0.49670737,1849.9,1849.8,0.0011]
[1771979276365,0.49670737,1849.9,1849.5,1.35275709]
[1771979276767,0.49670737,1849.9,1849.5,1.82609147]
[1771979276959,0.49670737,1849.9,1849.6,0.47333438]
[1771979277140,1.83893107,1850.1,1849.6,0.47333438]
[1771979277345,0.48661408,1850.0,1849.6,1.82493307]
[1771979277768,0.48661408,1850.0,1849.7,0.47314507]
[1771979279682,0.001,1850.1,1849.8,0.47277296]
[1771979279846,0.001,1850.1,1849.9,0.47277296]
[1771979281172,0.48661408,1850.0,1849.6,1.82422745]
[1771979282769,0.48661408,1850.0,1849.7,0.47223066]
[1771979282968,0.001,1850.1,1849.7,0.47223066]
[1771979283278,0.001,1850.1,1849.8,0.47223066]
[1771979283646,0.001,1850.2,1849.8,0.47105403]
[1771979283847,0.001,1850.2,1850.1,0.47105403]
[1771979284478,0.001,1850.2,1850.0,1.82223077]
[1771979285192,0.001,1850.2,1850.1,0.47087942]
[1771979287082,0.001,1850.2,1850.1,1.82215772]
[1771979289351,0.001,1850.2,1849.9,0.47003604]
[1771979289552,0.001,1850.2,1849.9,1.82146044]
[1771979289553,0.48761408,1850.2,1849.9,1.82146044]
[1771979292367,0.48761408,1850.2,1849.9,0.47003604]
[1771979292760,1.83882604,1850.2,1849.9,0.47003604]
[1771979292982,0.48761408,1850.2,1849.9,0.47003604]
[1771979295398,1.83882007,1850.2,1849.9,0.47003604]
[1771979295561,0.48661408,1850.1,1849.8,0.0011]
[1771979298402,0.48661408,1850.0,1849.9,0.0011]
[1771979300403,1.83796543,1850.0,1849.9,0.0011]
[1771979301297,0.48661408,1849.9,1849.7,0.0011]
[1771979302202,1.83894013,1850.1,1849.7,0.46930002]
[1771979302393,0.48661408,1850.0,1849.7,0.46930002]
[1771979304805,0.48661408,1850.0,1849.6,1.35274245]
[1771979304806,1.83800923,1850.0,1849.4,1.2074895]
[1771979305017,0.50617363,1849.9,1849.4,2.5592284]
[1771979305214,0.50617363,1849.9,1849.4,1.2074895]
[1771979307208,0.50617363,1849.8,1849.4,1.2074895]
[1771979308421,0.50617363,1849.6,1849.4,1.2074895]
[1771979308611,0.49477284,1849.4,1848.9,0.49496336]
[1771979308910,0.49477284,1849.4,1849.0,0.49496336]
[1771979309910,0.49477284,1849.3,1849.0,0.49496336]
[1771979310113,0.49477284,1849.3,1849.0,1.84704128]
[1771979310483,0.49477284,1849.7,1849.3,0.49496336]
[1771979310704,1.3524499,1849.9,1849.4,0.49496336]
[1771979311008,0.49477284,1849.8,1849.4,0.49606336]
[1771979312112,0.49477284,1849.7,1849.4,0.0011]
[1771979312410,0.49477284,1849.6,1849.4,0.0011]
[1771979316222,1.84627966,1849.8,1849.4,0.49606336]
[1771979317225,0.49477284,1849.7,1849.4,0.49606336]
[1771979318298,0.49397284,1849.7,1849.4,0.49606336]
[1771979319411,1.08022903,1849.5,1849.2,0.49606336]
[1771979319616,0.49477284,1849.7,1849.3,0.49496336]
[1771979320397,0.001,1849.9,1849.7,0.49496336]
[1771979320726,0.001,1849.9,1849.8,0.49496336]
[1771979321295,0.001,1850.1,1849.9,0.49496336]
[1771979322905,0.49577284,1850.1,1849.7,1.8465047]
[1771979325707,1.84706323,1850.1,1849.7,1.8465047]
[1771979325913,1.35229039,1850.1,1849.7,1.8465047]
[1771979326239,0.49477284,1850.0,1849.7,1.8465047]
[1771979326422,0.49477284,1850.0,1849.7,0.49496336]
[1771979326741,1.08022903,1850.0,1849.5,0.49606336]
[1771979327040,0.49477284,1850.0,1849.6,0.49496336]
[1771979327826,0.49477284,1849.9,1849.6,0.49496336]
[1771979329131,0.5001685,1849.7,1849.3,0.00849529]
[1771979330412,0.5001685,1849.7,1849.4,0.00829356]
[1771979330725,1.85174446,1849.7,1849.4,0.00829356]
[1771979333741,0.5001685,1849.6,1849.3,0.00799957]
[1771979335012,0.5001685,1849.6,1849.4,0.0011]
[1771979335213,0.5011685,1849.6,1849.4,0.0011]
[1771979337239,0.001,1849.6,1849.4,0.0087231]
[1771979341252,0.5011685,1849.6,1849.4,0.0087231]
[1771979341417,0.5011685,1849.6,1849.4,0.0011]
[1771979342645,1.85283066,1849.6,1849.4,0.0011]
[1771979343653,0.5011685,1849.6,1849.4,0.0011]
[1771979344440,1.85284003,1849.6,1849.4,0.0011]
[1771979344754,0.5001685,1849.5,1849.3,0.0011]
[1771979345329,0.5001685,1849.4,1849.1,0.0011]
[1771979346558,0.5001685,1849.2,1849.1,0.0011]
[1771979347853,0.5001685,1849.2,1848.8,0.003]
[1771979348156,0.5001685,1849.2,1848.8,1.36299727]
[1771979349429,0.5001685,1849.2,1848.9,0.00761308]
[1771979349634,0.4996185,1849.4,1848.9,0.00761308]
[1771979350046,1.85141554,1849.4,1848.9,0.00761308]
[1771979351864,0.4996185,1849.5,1849.1,0.00745662]
[1771979352168,1.85226475,1849.6,1849.1,0.00745662]
[1771979352465,0.4996185,1849.5,1849.1,0.00745662]
[1771979353063,0.5006185,1849.6,1849.1,0.00745662]
[1771979353763,1.35265042,1849.6,1849.1,0.00745662]
[1771979353965,1.85134991,1849.5,1849.1,0.00745662]
[1771979354372,0.4996185,1849.4,1849.0,0.00722861]
[1771979356066,0.4996185,1849.3,1849.0,0.00722861]
[1771979356239,0.4996185,1849.3,1848.8,0.01015435]
[1771979357167,0.4996185,1849.3,1848.9,0.00708094]
[1771979358685,0.4996185,1849.2,1848.9,0.00708094]
[1771979359378,0.4996185,1849.2,1849.1,0.0011]
[1771979362382,1.8524622,1849.4,1849.1,0.0011]
[1771979362683,0.5006185,1849.4,1849.1,0.0011]
[1771979363051,0.4996185,1849.3,1849.1,0.0011]
[1771979363252,0.4988185,1849.3,1849.1,0.0011]
[1771979366387,0.4980185,1849.3,1849.1,0.0011]
[1771979369487,0.4964185,1849.3,1849.1,0.0003]
[1771979371583,0.4964185,1849.3,1849.2,0.0011]
[1771979372287,0.4964185,1849.3,1849.1,0.0003]
[1771979373987,0.001,1849.4,1849.1,0.01043581]
[1771979377069,0.001,1849.4,1849.1,1.36243539]
[1771979377460,0.50118674,1849.4,1849.1,1.36243539]
[1771979377685,0.50118674,1849.4,1849.1,0.01043581]
[1771979378289,0.50118674,1849.4,1849.1,0.00963581]
[1771979378588,1.85304106,1849.4,1849.1,0.00963581]
[1771979378763,0.50118674,1849.4,1849.1,0.00963581]
[1771979379192,0.50118674,1849.4,1849.1,1.36163768]
[1771979381275,0.50118674,1849.4,1849.1,1.36083768]
[1771979383519,0.50118674,1849.4,1849.1,0.00883581]
[1771979383698,0.50118674,1849.4,1849.2,0.0011]
[1771979383899,0.001,1849.3,1849.2,0.0011]
[1771979384396,0.001,1849.3,1849.2,0.0003]
[1771979385697,0.50118674,1849.3,1849.2,0.0003]
[1771979390806,0.001,1849.3,1849.2,0.0003]
[1771979392610,0.001,1849.3,1849.2,0.00813608]
[1771979393995,0.001,1849.3,1849.2,0.0003]
[1771979399215,0.4991185,1849.6,1849.2,0.0003]
[1771979399514,0.001,1849.6,1849.3,0.00751966]
[1771979399900,0.001,1849.6,1849.5,0.00747652]
[1771979400521,0.001,1850.1,1849.6,0.00743386]
[1771979400720,0.001,1850.1,1850.0,0.00743386]
[1771979401597,0.4991185,1850.1,1849.7,0.0073917]
[1771979402594,0.4991185,1850.1,1849.6,0.00735002]
[1771979403013,0.001,1850.2,1850.0,0.00735002]
[1771979404717,0.4991185,1850.2,1849.7,0.87860242]
[1771979404918,0.4991185,1850.2,1849.7,5.41342911]
[1771979405098,0.4991185,1850.2,1849.8,0.00726809]
[1771979406900,0.001,1850.2,1850.0,0.00718804]
[1771979407498,0.001,1850.1,1850.0,0.00718804]
[1771979408024,0.4991185,1850.1,1849.7,5.40616102]
[1771979408214,0.4991185,1850.1,1849.7,1.35077052]
[1771979409024,0.4991185,1850.1,1849.6,0.00710981]
[1771979409347,0.4991185,1850.1,1849.6,0.59232856]
[1771979409707,1.85039987,1850.1,1849.6,0.59232856]
[1771979410023,0.4981185,1850.0,1849.6,0.00710981]
[1771979410224,0.4981185,1850.0,1849.5,1.35171668]
[1771979411541,0.4981185,1850.0,1849.5,1.35871248]
[1771979412002,0.4981185,1850.0,1849.6,0.0069958]
[1771979415709,0.001,1850.1,1850.0,0.00684981]
[1771979416110,0.001,1850.1,1850.0,0.59206856]
[1771979416347,0.001,1850.2,1850.0,0.59206856]
[1771979416652,0.4981185,1850.5,1849.9,0.58521875]
[1771979416811,0.50152568,1850.4,1849.8,0.58521875]
[1771979417011,0.50152568,1850.4,1849.9,0.58521875]
[1771979417436,0.50152568,1850.3,1849.9,1.93659622]
[1771979417612,0.50152568,1850.3,1849.9,1.35137747]
[1771979419337,1.93630786,1850.4,1849.9,1.35137747]
[1771979419338,0.001,1850.1,1849.9,1.35137747]
[1771979419540,0.50252568,1850.1,1849.8,5.40694769]
[1771979419835,0.001,1850.1,1849.9,0.58521875]
[1771979420042,0.001,1850.1,1849.8,5.99216644]
[1771979421611,0.001,1850.1,1849.9,0.58521875]
[1771979424043,0.001,1850.1,1850.0,1.35135135]
[1771979425745,0.50252568,1850.1,1849.9,1.3514244]
[1771979427039,0.50252568,1850.1,1849.8,5.40692501]
[1771979427222,0.45203831,1850.3,1849.9,0.45417005]
[1771979428853,0.45203831,1850.5,1850.0,0.45417005]
[1771979429262,0.45203831,1850.5,1850.1,1.3512783]
[1771979429628,0.45203831,1850.7,1850.3,0.45417005]
[1771979429963,0.45303831,1850.8,1850.5,0.45417005]
[1771979430146,0.45303831,1850.8,1850.4,0.45417005]
[1771979431665,0.45303831,1850.8,1850.5,1.35098621]
[1771979432758,0.001,1850.8,1850.5,1.35098621]
[1771979432957,0.45303831,1850.8,1850.4,5.40410186]
[1771979433151,0.45303831,1850.8,1850.4,1.35105923]
[1771979435352,0.45303831,1850.8,1850.4,1.80522928]
[1771979436641,0.001,1850.8,1850.5,0.45417005]
[1771979436962,0.001,1850.8,1850.7,0.45417005]
[1771979437658,0.45203831,1851.0,1850.7,0.45417005]
[1771979437859,0.45203831,1851.0,1850.7,1.0393888]
[1771979438163,0.45203831,1851.2,1850.8,0.45417005]
[1771979438363,0.45203831,1851.2,1850.9,1.35069425]
[1771979438536,0.45203831,1851.2,1850.8,1.80493728]
[1771979439148,0.45203831,1851.1,1850.7,1.35078931]
[1771979439344,0.45203831,1851.1,1850.8,1.0393888]
[1771979439665,0.45203831,1851.1,1850.8,0.45417005]
[1771979440462,0.45203831,1851.1,1850.8,1.80493062]
[1771979440652,0.45303831,1851.3,1850.9,0.45417005]
[1771979441840,0.45203831,1851.2,1850.9,0.45417005]
[1771979443764,0.45203831,1851.2,1850.9,1.80485479]
[1771979444370,0.001,1851.1,1850.9,1.80485479]
[1771979447073,0.001,1851.1,1850.9,2.39007354]
[1771979450670,0.001,1851.3,1851.2,0.45417005]
[1771979450979,0.45203831,1851.7,1851.4,1.0393888]
[1771979451750,0.45203831,1851.7,1851.5,0.58521875]
[1771979452073,0.001,1851.8,1851.4,1.80443141]
[1771979452074,0.001,1851.8,1851.6,1.0393888]
[1771979452850,0.45303831,1851.8,1851.4,2.38965016]
[1771979453080,0.45203831,1851.7,1851.3,1.93557594]
[1771979453656,0.45203831,1851.7,1851.3,1.35035719]
[1771979454385,0.45203831,1851.7,1851.3,1.80452724]
[1771979454973,0.45203831,1851.7,1851.3,2.38974599]
[1771979455189,0.45203831,1851.7,1851.4,0.47046584]
[1771979455386,0.45423146,1851.8,1851.5,1.05568459]
[1771979455678,0.001,1851.8,1851.6,1.05568459]
[1771979456380,0.001,1851.8,1851.6,2.40584244]
[1771979456761,0.001,1851.8,1851.6,1.82062369]
[1771979457468,0.001,1851.8,1851.6,0.47046584]
[1771979457687,0.45423146,1851.8,1851.3,1.35034411]
[1771979457885,0.45423146,1851.8,1851.3,2.4060287]
[1771979458059,0.45423146,1851.8,1851.3,1.82080995]
[1771979458247,0.45423146,1851.8,1851.3,2.4060287]
[1771979458650,0.45323146,1851.6,1851.3,1.05568459]
[1771979458876,0.45323146,1851.6,1851.3,2.40608036]
[1771979460559,0.45323146,1851.6,1851.1,6.4577896]
[1771979460770,0.45323146,1851.6,1851.1,1.82101416]
[1771979460771,0.45323146,1851.5,1851.1,1.82101416]
[1771979461272,0.45323146,1851.5,1851.2,1.05568459]
[1771979461483,0.45323146,1851.7,1851.3,0.47046584]
[1771979462079,0.45323146,1851.7,1851.2,0.58521875]
[1771979462282,0.45323146,1851.7,1851.1,2.40623291]
[1771979462814,0.45323146,1851.4,1851.0,1.82216016]
[1771979463095,0.45323146,1851.4,1851.0,1.82217068]
[1771979463305,0.45323146,1851.4,1851.0,2.40738943]
[1771979463594,0.45323146,1851.4,1851.0,1.93692359]
[1771979463761,0.45323146,1851.4,1851.1,0.47046584]
[1771979463957,0.45323146,1851.7,1851.3,1.05568459]
[1771979464173,0.45323146,1851.7,1851.4,1.05568459]
[1771979464389,0.45323146,1851.7,1851.4,0.47046584]
[1771979464908,0.45323146,1851.7,1851.4,1.82074444]
[1771979465114,0.001,1851.8,1851.5,0.58521875]
[1771979465402,0.45423146,1851.8,1851.4,1.82074444]
[1771979468100,0.001,1851.8,1851.5,0.47046584]
[1771979468895,0.45323146,1852.0,1851.5,0.47046584]
[1771979469098,1.80387918,1852.4,1851.7,0.47046584]
[1771979469608,0.45323146,1852.3,1851.7,0.47046584]
[1771979470012,0.45323146,1852.3,1851.9,0.47046584]
[1771979470807,1.80292344,1852.3,1851.9,0.47046584]
[1771979471409,0.45323146,1852.3,1851.9,0.47046584]
[1771979472808,0.45323146,1852.3,1851.7,0.47046584]
[1771979473012,0.45323146,1852.2,1851.7,0.47046584]
[1771979473911,0.45423146,1852.4,1851.7,0.47046584]
[1771979474287,1.80384275,1852.4,1851.7,0.47046584]
[1771979474485,0.45323146,1852.3,1851.7,0.47046584]
[1771979475096,0.45323146,1852.3,1851.9,0.47046584]
[1771979476003,1.80291509,1852.3,1851.9,0.47046584]
[1771979476187,0.45323146,1852.2,1851.9,0.47046584]
[1771979476612,0.45423146,1852.4,1851.9,0.47046584]
[1771979477919,0.45423146,1852.4,1852.1,0.47046584]
[1771979478217,0.001,1852.4,1852.1,0.47046584]
[1771979479913,0.45423146,1852.7,1852.3,1.82013921]
[1771979481195,0.001,1852.7,1852.4,0.47046584]
[1771979481914,0.001,1852.6,1852.5,1.34952766]
[1771979482118,0.45323146,1853.1,1852.6,0.47046584]
[1771979484190,0.45323146,1853.1,1852.7,1.34938198]
[1771979484426,0.45323146,1853.1,1852.7,1.81984782]
[1771979486326,1.80232843,1853.1,1852.7,0.47046584]
[1771979487114,0.45323146,1853.1,1852.7,1.81983715]
[1771979488725,0.4903382,1853.0,1852.5,1.82364746]
[1771979489034,0.4903382,1853.0,1852.3,1.82377795]
[1771979490196,0.4903382,1853.0,1852.0,0.47415693]
[1771979490401,0.4903382,1853.0,1852.0,1.82404893]
[1771979490994,4.08663697,1852.8,1851.9,1.34992689]
[1771979491196,0.4903382,1852.7,1851.9,1.34992689]
[1771979493637,0.4903382,1852.5,1851.5,0.47415693]
[1771979493840,0.4903382,1852.5,1851.4,1.35137698]
[1771979494027,0.4903382,1852.2,1851.4,1.35141814]
[1771979494207,0.4903382,1852.2,1851.4,0.0011]
[1771979494722,0.4903382,1852.2,1851.7,0.0011]
[1771979495717,0.4903382,1852.0,1851.7,0.0011]
[1771979497811,0.4903382,1851.7,1851.4,0.0011]
[1771979499734,0.4903382,1851.5,1851.1,0.0011]
[1771979500713,0.4903382,1851.5,1851.0,0.0011]
[1771979501942,1.35032948,1851.4,1851.0,0.0011]
[1771979502133,0.4903382,1851.3,1851.0,0.0011]
[1771979506256,1.35047536,1851.2,1851.1,0.0011]
[1771979506456,1.84081356,1851.2,1851.1,0.0011]
[1771979506759,0.4903382,1851.1,1850.9,0.0011]
[1771979507058,0.4903382,1851.1,1850.7,0.0011]
[1771979509060,0.4903382,1851.3,1850.8,0.47415693]
[1771979509239,1.84075537,1851.3,1850.8,0.47415693]
[1771979510043,0.4903382,1851.3,1850.8,0.47415693]
[1771979510968,1.84075404,1851.3,1850.8,0.47415693]
[1771979511263,1.84075404,1851.3,1850.9,0.47415693]
[1771979512367,1.35041584,1851.3,1850.9,0.47415693]
[1771979512547,0.4903382,1851.2,1850.9,0.47415693]
[1771979514868,0.4903382,1851.2,1850.7,0.47525693]
[1771979517464,0.49909301,1851.1,1850.8,1.35076723]
[1771979517960,0.49909301,1851.1,1850.7,0.0011]
[1771979518353,0.49909301,1851.1,1850.9,0.0011]
[1771979518549,0.49909301,1851.1,1850.6,0.48355582]
[1771979518966,0.49909301,1851.1,1850.8,0.0011]
[1771979519565,0.49909301,1850.9,1850.8,0.0011]
[1771979520645,0.001,1851.2,1850.8,0.48465582]
[1771979521467,0.50009301,1851.2,1850.8,0.48465582]
[1771979524070,0.001,1851.2,1850.9,0.48355582]
[1771979527085,0.001,1851.2,1850.9,1.83420607]
[1771979528253,0.001,1851.2,1850.9,0.48355582]
[1771979529775,0.50009301,1851.2,1850.8,0.0011]
[1771979530291,0.50009301,1851.2,1850.6,0.0011]
[1771979530456,0.50009301,1851.2,1850.9,0.0011]
[1771979530996,0.50009301,1851.2,1850.6,0.0011]
[1771979531681,0.49909301,1851.0,1850.6,0.0011]
[1771979532985,0.49909301,1851.0,1850.6,0.48465582]
[1771979533696,0.49909301,1851.1,1850.8,0.48355582]
[1771979534897,0.001,1851.2,1850.8,0.48355582]
[1771979535261,0.50009301,1851.2,1850.8,0.48355582]
[1771979535458,1.85060299,1851.2,1850.8,0.48355582]
[1771979537087,0.49909301,1851.1,1850.8,0.48355582]
[1771979537288,0.49909301,1851.1,1850.7,0.48355582]
[1771979540012,0.49909301,1851.1,1850.7,1.83437025]
[1771979540479,1.84964582,1851.1,1850.7,1.83437025]
[1771979541415,0.49909301,1851.1,1850.7,1.83437025]
[1771979541590,0.50009301,1851.2,1850.8,0.48355582]
[1771979541980,0.50009301,1851.2,1850.8,1.83429592]
[1771979542180,0.50009301,1851.2,1850.9,0.48355582]
[1771979542915,0.001,1851.1,1850.9,0.48355582]
[1771979545608,0.001,1851.2,1851.0,0.45720094]
[1771979547610,5.40102619,1851.7,1851.0,0.45720094]
[1771979547611,1.80511828,1851.8,1851.2,1.35047536]
[1771979547796,0.45508048,1851.8,1851.3,0.45720094]
[1771979547997,1.80503582,1852.0,1851.3,0.45720094]
[1771979548387,0.45508048,1851.9,1851.3,0.45720094]
[1771979549511,0.45508048,1851.9,1851.5,0.45720094]
[1771979550082,0.45508048,1851.9,1851.5,1.80741407]
[1771979550589,0.45508048,1851.9,1851.5,2.39153008]
[1771979550786,1.35082068,1852.1,1851.6,0.45720094]
[1771979551104,0.45508048,1852.0,1851.6,0.45720094]
[1771979553003,0.45508048,1851.9,1851.4,1.80753042]
[1771979553211,0.45508048,1851.8,1851.3,0.45720094]
[1771979553410,0.45508048,1851.6,1851.1,0.45720094]
[1771979553719,0.45508048,1851.6,1851.0,1.80776918]
[1771979553720,0.45508048,1851.5,1851.0,1.80776918]
[1771979554394,0.45508048,1851.4,1850.9,1.35064122]
[1771979554595,0.45508048,1851.3,1850.9,1.35064122]
[1771979554806,0.45508048,1851.1,1850.8,0.0011]
[1771979555522,0.45508048,1851.6,1850.8,0.45830094]
[1771979557428,0.45508048,1851.5,1851.0,0.45720094]
[1771979559587,0.45508048,1851.4,1851.0,1.80779744]
[1771979559793,0.45508048,1851.4,1850.9,1.35065469]
[1771979560290,0.45508048,1851.4,1850.9,1.80785563]
[1771979562216,0.45508048,1851.3,1850.9,1.80785563]
[1771979563630,0.45508048,1851.3,1850.8,0.0011]
[1771979564520,0.45508048,1851.2,1850.8,1.8090642]
[1771979564726,0.45508048,1851.3,1850.9,0.45720094]
[1771979566102,1.80540996,1851.4,1850.9,0.45720094]
[1771979567030,1.80540996,1851.4,1850.9,1.80898145]
[1771979567209,0.45508048,1851.3,1850.9,1.80898145]
[1771979567404,0.001,1851.2,1850.9,1.80898145]
[1771979570608,0.45508048,1851.1,1850.9,0.0011]
[1771979571919,0.45608048,1851.2,1850.9,0.45830094]
[1771979572330,0.001,1851.2,1850.9,0.45830094]
[1771979573019,0.001,1851.2,1851.1,0.45720094]
[1771979574631,0.45608048,1851.2,1850.9,0.0011]
[1771979575341,0.4978069,1851.1,1850.9,0.0011]
[1771979577532,0.4978069,1851.0,1850.9,0.0011]
[1771979578840,0.4978069,1851.1,1850.9,0.0011]
[1771979579422,0.4988069,1851.2,1851.0,0.0011]
[1771979579629,0.001,1851.1,1851.0,0.0011]
[1771979580537,0.4988069,1851.1,1851.0,0.0011]
[1771979581946,0.001,1851.1,1851.0,0.0011]
[1771979582842,0.4988069,1851.1,1851.0,0.0011]
[1771979584523,1.84935522,1851.1,1851.0,0.0011]
[1771979585040,0.001,1851.1,1851.0,0.4571037]
[1771979586647,0.001,1851.1,1851.0,1.80772498]
[1771979587343,0.001,1851.1,1851.0,0.4571037]
[1771979588041,0.001,1851.1,1851.0,0.0011]
[1771979589346,0.001,1851.1,1851.0,1.04172568]
[1771979589647,0.4978069,1851.6,1851.1,0.4560037]
[1771979590745,0.4978069,1851.6,1851.3,0.4560037]
[1771979591445,0.4978069,1851.8,1851.4,0.4560037]
[1771979592357,0.4978069,1851.8,1851.5,0.4560037]
[1771979593954,0.4978069,1851.8,1851.5,1.80625779]
[1771979594330,0.001,1851.9,1851.6,0.4560037]
[1771979594721,0.4988069,1851.9,1851.6,0.4560037]
[1771979594927,0.001,1851.9,1851.6,0.4560037]
[1771979595427,0.4988069,1851.9,1851.6,0.4560037]
[1771979597229,0.4988069,1851.9,1851.6,1.80618384]
[1771979597425,0.4988069,1851.9,1851.6,0.4560037]
[1771979598054,0.4988069,1851.9,1851.6,1.80618535]
[1771979598654,0.4988069,1851.9,1851.6,0.4560037]
[1771979599238,0.4988069,1851.9,1851.5,1.80621362]
[1771979599958,0.4988069,1851.9,1851.6,0.4560037]
[1771979602356,0.4988069,1851.9,1851.7,1.3501107]
[1771979602565,0.4988069,1851.9,1851.6,1.80614094]
[1771979604073,0.001,1851.8,1851.6,1.80614094]
[1771979604679,0.001,1851.8,1851.7,0.4560037]
[1771979605848,0.001,1851.8,1851.6,1.830253]
[1771979606871,0.001,1851.8,1851.7,0.48011576]
[1771979608951,0.001,1851.8,1851.7,1.83022646]